[Event "ETCC Women 2013"]
[Site "Warsaw"]
[Date "2013.11.10"]
[Round "3"]
[White "Arabidze, Meri"]
[Black "Vasiliev, Olga"]
[Result "0-1"]
[ECO "E63"]
[WhiteElo "2374"]
[BlackElo "2282"]
[PlyCount "114"]
[EventDate "2013.??.??"]
[EventCountry "POL"]
[WhiteTeam "Georgia"]
[BlackTeam "Israel"]
[WhiteTeamCountry "GEO"]
[BlackTeamCountry "ISR"]
[TimeControl "40/5400+30:1800+30"]

1. d4 {[%emt 0:00:00]} Nf6 {[%emt 0:00:00]} 2. c4 {[%emt 0:00:00]} g6 {[%emt 0:
00:00]} 3. g3 {[%emt 0:00:00]} Bg7 {[%emt 0:00:00]} 4. Bg2 {[%emt 0:00:09]} O-O
{[%emt 0:00:10]} 5. Nc3 {[%emt 0:00:18]} d6 {[%emt 0:00:25]} 6. Nf3 {[%emt 0:
00:12]} Nc6 {[%emt 0:00:19]} 7. O-O {[%emt 0:00:25]} a6 {[%emt 0:00:05]} 8. Re1
{[%emt 0:00:53]} Rb8 {[%emt 0:00:51]} 9. Rb1 {[%emt 0:00:14]} b5 {[%emt 0:06:
30]} 10. cxb5 {[%emt 0:00:21]} axb5 {[%emt 0:00:20]} 11. b4 {[%emt 0:00:12]} e5
{[%emt 0:05:04]} 12. d5 {[%emt 0:11:49]} Nd4 {[%emt 0:12:16]} 13. Bb2 {[%emt 0:
10:16]} Nxf3+ {[%emt 0:04:50]} 14. Bxf3 {[%emt 0:03:10]} Bf5 {[%emt 0:02:10]}
15. e4 {[%emt 0:14:32]} Bd7 {[%emt 0:00:37]} 16. Bg2 {[%emt 0:02:52]} h5 {
[%emt 0:10:23]} 17. Bc1 {[%emt 0:03:58]} Qc8 {[%emt 0:07:26]} 18. Qe2 {[%emt 0:
05:40]} Ng4 {[%emt 0:04:39]} 19. Bd2 {[%emt 0:09:12]} f5 {[%emt 0:04:47]} 20.
exf5 {[%emt 0:00:36]} Bxf5 {[%emt 0:01:14]} 21. Rbc1 {[%emt 0:00:58]} Qb7 {
[%emt 0:06:57]} 22. h3 {[%emt 0:05:21]} Nf6 {[%emt 0:03:01]} 23. Bg5 {[%emt 0:
00:37]} Rf7 {[%emt 0:06:44]} 24. Qd2 {[%emt 0:04:53]} Rbf8 {[%emt 0:05:37]} 25.
Bf1 {[%emt 0:05:05]} Nh7 {[%emt 0:02:22]} 26. Be3 {[%emt 0:01:07]} Nf6 {[%emt
0:08:02]} 27. Bg5 {[%emt 0:10:07]} Nh7 {[%emt 0:00:50]} 28. Be3 {[%emt 0:01:52]
} Nf6 {[%emt 0:00:08]} 29. Qd1 {[%emt 0:05:00]} Kh8 {[%emt 0:01:13]} 30. Qb3 {
[%emt 0:02:01]} Ne4 {[%emt 0:03:15]} 31. Nxb5 {[%emt 0:01:02]} Bxh3 {[%emt 0:
00:55]} 32. Bxh3 {[%emt 0:01:46]} Qxb5 {[%emt 0:00:58]} 33. Rc2 {[%emt 0:00:19]
} Qb7 {[%emt 0:03:39]} 34. a4 {[%emt 0:00:50]} Rb8 {[%emt 0:00:36]} 35. a5 {
[%emt 0:00:55]} g5 {[%emt 0:00:34]} 36. Bg2 {[%emt 0:00:39]} Nf6 {[%emt 0:00:
25]} 37. Bxg5 {[%emt 0:00:35]} Ng4 {[%emt 0:00:33]} 38. Rb1 {[%emt 0:00:31]}
Qb5 {[%emt 0:00:32]} 39. Bf1 {[%emt 0:00:23]} Qd7 {[%emt 0:00:22]} 40. Be3 {
[%emt 0:00:00]} Qf5 {[%emt 0:00:00]} 41. Rbc1 {[%emt 0:14:19]} h4 {[%emt 0:06:
40]} 42. Bh3 {[%emt 0:05:58]} hxg3 {[%emt 0:04:37]} 43. fxg3 {[%emt 0:00:02]}
Qf3 {[%emt 0:01:12]} 44. Bxg4 {[%emt 0:03:49]} Qxg4 {[%emt 0:00:13]} 45. Rh2+ {
[%emt 0:00:28]} Kg8 {[%emt 0:00:09]} 46. Bf2 {[%emt 0:00:10]} Rxb4 {[%emt 0:01:
13]} 47. Qc2 {[%emt 0:04:31]} e4 {[%emt 0:01:09]} 48. Qc6 {[%emt 0:03:29]} Rb8
{[%emt 0:06:39]} 49. Qc4 {[%emt 0:00:46]} Rb2 {[%emt 0:01:49]} 50. Rf1 {[%emt
0:01:24]} Qf3 {[%emt 0:05:22]} 51. a6 {[%emt 0:01:06]} e3 {[%emt 0:01:04]} 52.
a7 {[%emt 0:00:14]} exf2+ {[%emt 0:03:40]} 53. Rhxf2 {[%emt 0:00:01]} Qxg3+ {
[%emt 0:00:08]} 54. Kh1 {[%emt 0:00:02]} Rfxf2 {[%emt 0:01:08]} 55. a8=Q+ {
[%emt 0:00:14]} Bf8 {[%emt 0:00:21]} 56. Rxf2 {[%emt 0:02:04]} Rxf2 {[%emt 0:
00:06]} 57. Qxf8+ {[%emt 0:00:30]} Kxf8 {[%emt 0:00:17]} 0-1

[Event "ETCC Women 2013"]
[Site "Warsaw"]
[Date "2013.11.10"]
[Round "3"]
[White "Botsari, Anna-Maria"]
[Black "Schut, Lisa"]
[Result "1-0"]
[ECO "D70"]
[WhiteElo "2338"]
[BlackElo "2333"]
[PlyCount "69"]
[EventDate "2013.??.??"]
[EventCountry "POL"]
[WhiteTeam "Greece"]
[BlackTeam "Netherlands"]
[WhiteTeamCountry "GRE"]
[BlackTeamCountry "NED"]
[TimeControl "40/5400+30:1800+30"]

1. d4 {[%emt 0:00:00]} Nf6 {[%emt 0:00:00]} 2. c4 {[%emt 0:00:00]} g6 {[%emt 0:
00:00]} 3. Nf3 {[%emt 0:00:00]} Bg7 {[%emt 0:00:00]} 4. e3 {[%emt 0:00:00]} d5
{[%emt 0:01:51]} 5. cxd5 {[%emt 0:00:04]} Nxd5 {[%emt 0:00:23]} 6. Be2 {[%emt
0:00:08]} O-O {[%emt 0:02:59]} 7. e4 {[%emt 0:00:05]} Nb6 {[%emt 0:01:15]} 8.
O-O {[%emt 0:00:16]} Bg4 {[%emt 0:02:09]} 9. Nbd2 {[%emt 0:00:28]} a5 {[%emt 0:
16:26]} 10. h3 {[%emt 0:01:47]} Bd7 {[%emt 0:05:08]} 11. a4 {[%emt 0:02:34]}
Na6 {[%emt 0:02:15]} 12. Nc4 {[%emt 0:02:09]} Nxc4 {[%emt 0:02:52]} 13. Bxc4 {
[%emt 0:00:18]} Nb4 {[%emt 0:02:16]} 14. Bg5 {[%emt 0:07:27]} c5 {[%emt 0:04:
27]} 15. d5 {[%emt 0:08:44]} Bxb2 {[%emt 0:07:27]} 16. d6 {[%emt 0:15:01]} Bf6
{[%emt 0:02:14]} 17. dxe7 {[%emt 0:05:01]} Bxe7 {[%emt 0:00:12]} 18. Bh6 {
[%emt 0:00:21]} Qc7 {[%emt 0:14:21]} 19. Bxf8 {[%emt 0:09:05]} Rxf8 {[%emt 0:
01:04]} 20. Qb3 {[%emt 0:07:15]} Bc6 {[%emt 0:02:15]} 21. Rfe1 {[%emt 0:02:29]}
Bf6 {[%emt 0:05:37]} 22. Rad1 {[%emt 0:01:00]} Kh8 {[%emt 0:02:46]} 23. Rd2 {
[%emt 0:07:17]} b6 {[%emt 0:07:13]} 24. e5 {[%emt 0:01:58]} Bg7 {[%emt 0:03:35]
} 25. Ng5 {[%emt 0:01:23]} Be8 {[%emt 0:02:32]} 26. e6 {[%emt 0:14:05]} Qe7 {
[%emt 0:03:52]} 27. Nf3 {[%emt 0:03:25]} fxe6 {[%emt 0:03:01]} 28. Rxe6 {[%emt
0:01:03]} Qc7 {[%emt 0:00:27]} 29. Rde2 {[%emt 0:03:28]} Bc6 {[%emt 0:00:27]}
30. Ne5 {[%emt 0:00:58]} Bxe5 {[%emt 0:03:17]} 31. R6xe5 {[%emt 0:00:04]} Qd7 {
[%emt 0:00:20]} 32. Re7 {[%emt 0:01:27]} Qd4 {[%emt 0:00:31]} 33. Qg3 {[%emt 0:
01:54]} Nd5 {[%emt 0:01:16]} 34. Bxd5 {[%emt 0:00:31]} Qxd5 {[%emt 0:00:13]}
35. Rd2 {[%emt 0:01:03]} 1-0

[Event "ETCC Women 2013"]
[Site "Warsaw"]
[Date "2013.11.10"]
[Round "3"]
[White "Chevannes, Sabrina L"]
[Black "Havlikova, Kristyna"]
[Result "0-1"]
[ECO "D72"]
[WhiteElo "2200"]
[BlackElo "2237"]
[PlyCount "80"]
[EventDate "2013.??.??"]
[EventCountry "POL"]
[WhiteTeam "England"]
[BlackTeam "Czech Republic"]
[WhiteTeamCountry "ENG"]
[BlackTeamCountry "CZE"]
[TimeControl "40/5400+30:1800+30"]

1. d4 {[%emt 0:00:00]} Nf6 {[%emt 0:00:00]} 2. c4 {[%emt 0:00:00]} g6 {[%emt 0:
00:00]} 3. g3 {[%emt 0:00:01]} d5 {[%emt 0:01:08]} 4. cxd5 {[%emt 0:00:35]}
Nxd5 {[%emt 0:00:19]} 5. Bg2 {[%emt 0:00:38]} Bg7 {[%emt 0:00:19]} 6. e4 {
[%emt 0:00:41]} Nb6 {[%emt 0:06:11]} 7. Ne2 {[%emt 0:00:41]} O-O {[%emt 0:02:
37]} 8. O-O {[%emt 0:00:20]} Bg4 {[%emt 0:07:19]} 9. Nbc3 {[%emt 0:12:29]} Qd7
{[%emt 0:04:00]} 10. Re1 {[%emt 0:14:44]} Nc6 {[%emt 0:08:20]} 11. d5 {[%emt 0:
18:19]} Ne5 {[%emt 0:03:41]} 12. Rf1 {[%emt 0:14:09]} Rfd8 {[%emt 0:24:07]} 13.
f3 {[%emt 0:04:24]} Bh3 {[%emt 0:00:09]} 14. Qc2 {[%emt 0:04:58]} Bxg2 {[%emt
0:06:13]} 15. Kxg2 {[%emt 0:00:05]} c6 {[%emt 0:00:07]} 16. Rd1 {[%emt 0:02:53]
} cxd5 {[%emt 0:09:07]} 17. Nxd5 {[%emt 0:01:23]} Nxd5 {[%emt 0:00:07]} 18.
Rxd5 {[%emt 0:00:16]} Qc6 {[%emt 0:00:07]} 19. Rc5 {[%emt 0:06:28]} Qa6 {[%emt
0:01:17]} 20. Nf4 {[%emt 0:01:36]} e6 {[%emt 0:15:57]} 21. Be3 {[%emt 0:02:17]}
Nc6 {[%emt 0:00:05]} 22. Qf2 {[%emt 0:08:50]} Rd7 {[%emt 0:01:18]} 23. a3 {
[%emt 0:02:13]} Rad8 {[%emt 0:00:06]} 24. Re1 {[%emt 0:01:20]} Bd4 {[%emt 0:00:
53]} 25. Bxd4 {[%emt 0:00:14]} Rxd4 {[%emt 0:00:31]} 26. Rc2 {[%emt 0:01:08]}
Qa4 {[%emt 0:01:35]} 27. Kg1 {[%emt 0:01:27]} Ne5 {[%emt 0:01:17]} 28. Rc3 {
[%emt 0:00:52]} Rd2 {[%emt 0:00:51]} 29. Re2 {[%emt 0:00:25]} Qd1+ {[%emt 0:00:
59]} 30. Qf1 {[%emt 0:00:19]} Rxe2 {[%emt 0:02:12]} 31. Nxe2 {[%emt 0:00:04]}
Qd2 {[%emt 0:00:06]} 32. f4 {[%emt 0:01:26]} Nc6 {[%emt 0:02:26]} 33. Rf3 {
[%emt 0:00:31]} Qxb2 {[%emt 0:00:27]} 34. f5 {[%emt 0:00:07]} Ne5 {[%emt 0:01:
02]} 35. Rf4 {[%emt 0:00:21]} Qb6+ {[%emt 0:00:48]} 36. Kh1 {[%emt 0:00:13]} g5
{[%emt 0:00:22]} 37. f6 {[%emt 0:01:13]} gxf4 {[%emt 0:00:31]} 38. Qxf4 {[%emt
0:00:06]} Qb1+ {[%emt 0:00:54]} 39. Kg2 {[%emt 0:00:08]} Ng6 {[%emt 0:00:49]}
40. Qg4 {[%emt 0:00:00]} Rd2 {[%emt 0:00:00]} 0-1

[Event "ETCC Women 2013"]
[Site "Warsaw"]
[Date "2013.11.10"]
[Round "3"]
[White "Cmilyte, Viktorija"]
[Black "Zozulia, Anna"]
[Result "1-0"]
[ECO "D71"]
[WhiteElo "2506"]
[BlackElo "2334"]
[PlyCount "125"]
[EventDate "2013.??.??"]
[EventCountry "POL"]
[WhiteTeam "Lithuania"]
[BlackTeam "Belgium"]
[WhiteTeamCountry "LTU"]
[BlackTeamCountry "BEL"]
[TimeControl "40/5400+30:1800+30"]

1. d4 {[%emt 0:00:00]} Nf6 {[%emt 0:00:00]} 2. c4 {[%emt 0:00:00]} g6 {[%emt 0:
00:00]} 3. g3 {[%emt 0:00:05]} Bg7 {[%emt 0:00:05]} 4. Bg2 {[%emt 0:00:06]} O-O
{[%emt 0:00:15]} 5. Nc3 {[%emt 0:00:06]} d6 {[%emt 0:00:38]} 6. Nf3 {[%emt 0:
00:07]} c6 {[%emt 0:02:35]} 7. O-O {[%emt 0:00:08]} Nbd7 {[%emt 0:00:05]} 8. e4
{[%emt 0:00:49]} e5 {[%emt 0:01:37]} 9. b3 {[%emt 0:00:54]} Re8 {[%emt 0:05:14]
} 10. Be3 {[%emt 0:01:59]} exd4 {[%emt 0:15:22]} 11. Nxd4 {[%emt 0:00:18]} Nc5
{[%emt 0:00:09]} 12. f3 {[%emt 0:02:54]} a5 {[%emt 0:00:19]} 13. Qc2 {[%emt 0:
02:31]} Qc7 {[%emt 0:07:15]} 14. Rad1 {[%emt 0:04:09]} Bd7 {[%emt 0:00:51]} 15.
Nde2 {[%emt 0:05:30]} Rad8 {[%emt 0:01:50]} 16. Rd2 {[%emt 0:02:49]} Bc8 {
[%emt 0:02:02]} 17. Rfd1 {[%emt 0:01:36]} h6 {[%emt 0:05:05]} 18. h3 {[%emt 0:
02:43]} Kh7 {[%emt 0:05:08]} 19. Kh1 {[%emt 0:03:40]} Rd7 {[%emt 0:06:40]} 20.
a3 {[%emt 0:07:25]} Rdd8 {[%emt 0:06:30]} 21. b4 {[%emt 0:05:38]} axb4 {[%emt
0:00:14]} 22. axb4 {[%emt 0:00:04]} Na6 {[%emt 0:01:01]} 23. Qb3 {[%emt 0:02:
27]} Bf8 {[%emt 0:11:46]} 24. Bd4 {[%emt 0:06:39]} Bg7 {[%emt 0:03:56]} 25. Nf4
{[%emt 0:01:16]} Be6 {[%emt 0:02:37]} 26. Nxe6 {[%emt 0:04:14]} fxe6 {[%emt 0:
01:27]} 27. Bf2 {[%emt 0:02:31]} Nh5 {[%emt 0:07:02]} 28. b5 {[%emt 0:10:08]}
Bxc3 {[%emt 0:08:24]} 29. Qxc3 {[%emt 0:01:25]} cxb5 {[%emt 0:00:03]} 30. Bf1 {
[%emt 0:06:39]} b4 {[%emt 0:02:28]} 31. Qb2 {[%emt 0:00:14]} Rf8 {[%emt 0:02:
13]} 32. Kg2 {[%emt 0:01:18]} Qe7 {[%emt 0:01:37]} 33. e5 {[%emt 0:01:55]} dxe5
{[%emt 0:00:41]} 34. Rxd8 {[%emt 0:01:07]} Rxd8 {[%emt 0:00:05]} 35. Rxd8 {
[%emt 0:00:12]} Qxd8 {[%emt 0:00:02]} 36. Qxe5 {[%emt 0:00:07]} Qg5 {[%emt 0:
02:00]} 37. Qd6 {[%emt 0:01:01]} b3 {[%emt 0:00:34]} 38. Qd7+ {[%emt 0:02:13]}
Ng7 {[%emt 0:00:02]} 39. Qxb7 {[%emt 0:04:09]} Nc5 {[%emt 0:00:07]} 40. Qb4 {
[%emt 0:00:00]} Nh5 {[%emt 0:00:00]} 41. Bxc5 {[%emt 0:12:02]} Qxg3+ {[%emt 0:
07:40]} 42. Kh1 {[%emt 0:00:06]} Qxf3+ {[%emt 0:08:28]} 43. Bg2 {[%emt 0:00:06]
} Qd1+ {[%emt 0:01:04]} 44. Kh2 {[%emt 0:00:28]} Qd3 {[%emt 0:06:01]} 45. Qb7+
{[%emt 0:01:25]} Kg8 {[%emt 0:00:32]} 46. Qb8+ {[%emt 0:10:38]} Kh7 {[%emt 0:
00:12]} 47. Qe5 {[%emt 0:01:23]} Qxc4 {[%emt 0:08:39]} 48. Bd4 {[%emt 0:00:53]}
Kg8 {[%emt 0:00:22]} 49. Qh8+ {[%emt 0:01:48]} Kf7 {[%emt 0:00:03]} 50. Qh7+ {
[%emt 0:00:36]} Kf8 {[%emt 0:00:56]} 51. Qxh6+ {[%emt 0:01:23]} Ke7 {[%emt 0:
01:38]} 52. Qh7+ {[%emt 0:01:44]} Kf8 {[%emt 0:01:06]} 53. Be5 {[%emt 0:01:19]}
Qc5 {[%emt 0:01:04]} 54. Qh8+ {[%emt 0:00:13]} Kf7 {[%emt 0:00:19]} 55. Qb8 {
[%emt 0:00:29]} Qc2 {[%emt 0:00:30]} 56. Qb5 {[%emt 0:00:58]} Qf5 {[%emt 0:00:
50]} 57. Qd7+ {[%emt 0:01:01]} Kf8 {[%emt 0:00:07]} 58. Bd6+ {[%emt 0:00:57]}
Kg8 {[%emt 0:00:03]} 59. Qc8+ {[%emt 0:00:13]} Kh7 {[%emt 0:01:12]} 60. Qc7+ {
[%emt 0:01:31]} Kh6 {[%emt 0:00:29]} 61. Qb8 {[%emt 0:00:58]} Qc2 {[%emt 0:00:
38]} 62. h4 {[%emt 0:02:41]} Kh7 {[%emt 0:00:24]} 63. Be5 {[%emt 0:00:33]} 1-0

[Event "ETCC Women 2013"]
[Site "Warsaw"]
[Date "2013.11.10"]
[Round "3"]
[White "Danielian, Elina"]
[Black "Worek, Joanna"]
[Result "1-0"]
[ECO "A46"]
[WhiteElo "2457"]
[BlackElo "2336"]
[PlyCount "83"]
[EventDate "2013.??.??"]
[EventCountry "POL"]
[WhiteTeam "Armenia"]
[BlackTeam "Poland"]
[WhiteTeamCountry "ARM"]
[BlackTeamCountry "POL"]
[TimeControl "40/5400+30:1800+30"]

1. d4 {[%emt 0:00:00]} Nf6 {[%emt 0:00:00]} 2. Nf3 {[%emt 0:00:04]} e6 {[%emt
0:00:21]} 3. e3 {[%emt 0:00:08]} d5 {[%emt 0:00:26]} 4. c4 {[%emt 0:00:14]} Be7
{[%emt 0:00:50]} 5. Bd3 {[%emt 0:00:43]} O-O {[%emt 0:00:41]} 6. O-O {[%emt 0:
00:18]} b6 {[%emt 0:00:48]} 7. b3 {[%emt 0:01:04]} Bb7 {[%emt 0:01:03]} 8. Bb2
{[%emt 0:00:18]} c5 {[%emt 0:00:58]} 9. dxc5 {[%emt 0:07:34]} dxc4 {[%emt 0:07:
07]} 10. Bxc4 {[%emt 0:00:56]} Qxd1 {[%emt 0:00:45]} 11. Rxd1 {[%emt 0:00:04]}
Bxc5 {[%emt 0:00:13]} 12. Nbd2 {[%emt 0:01:57]} Nbd7 {[%emt 0:05:39]} 13. Be2 {
[%emt 0:00:41]} Rfd8 {[%emt 0:01:53]} 14. Ne1 {[%emt 0:01:08]} Rac8 {[%emt 0:
03:40]} 15. Nc4 {[%emt 0:00:41]} Nd5 {[%emt 0:05:18]} 16. Nd3 {[%emt 0:06:50]}
Bf8 {[%emt 0:07:28]} 17. e4 {[%emt 0:14:19]} N5f6 {[%emt 0:00:06]} 18. f3 {
[%emt 0:01:11]} Ba6 {[%emt 0:08:57]} 19. Ne1 {[%emt 0:06:58]} Nb8 {[%emt 0:03:
18]} 20. Kf1 {[%emt 0:02:14]} Nc6 {[%emt 0:01:15]} 21. Rxd8 {[%emt 0:13:57]}
Rxd8 {[%emt 0:00:25]} 22. Rc1 {[%emt 0:00:05]} Bc5 {[%emt 0:10:15]} 23. Nd3 {
[%emt 0:07:42]} Bd4 {[%emt 0:08:47]} 24. Bxd4 {[%emt 0:06:05]} Nxd4 {[%emt 0:
02:09]} 25. Nb4 {[%emt 0:01:22]} Nxe2 {[%emt 0:01:57]} 26. Kxe2 {[%emt 0:00:07]
} Bb7 {[%emt 0:00:57]} 27. Ne5 {[%emt 0:01:35]} Ne8 {[%emt 0:01:03]} 28. Nbc6 {
[%emt 0:05:24]} Ra8 {[%emt 0:00:14]} 29. Rd1 {[%emt 0:04:00]} f6 {[%emt 0:04:
40]} 30. Ne7+ {[%emt 0:08:41]} Kf8 {[%emt 0:00:39]} 31. N5c6 {[%emt 0:00:03]}
a5 {[%emt 0:04:30]} 32. Rd7 {[%emt 0:02:18]} Ba6+ {[%emt 0:03:27]} 33. Ke3 {
[%emt 0:00:15]} Bb5 {[%emt 0:09:49]} 34. a4 {[%emt 0:00:07]} Bxc6 {[%emt 0:02:
14]} 35. Nxc6 {[%emt 0:00:05]} Rc8 {[%emt 0:00:33]} 36. Nd4 {[%emt 0:01:26]} e5
{[%emt 0:00:24]} 37. Ne6+ {[%emt 0:03:09]} Kg8 {[%emt 0:00:05]} 38. Kd3 {[%emt
0:02:33]} g6 {[%emt 0:02:13]} 39. f4 {[%emt 0:02:04]} exf4 {[%emt 0:01:21]} 40.
Nxf4 {[%emt 0:00:00]} Rc7 {[%emt 0:00:00]} 41. Rxc7 {[%emt 0:06:18]} Nxc7 {
[%emt 0:00:52]} 42. Kc4 {[%emt 0:00:03]} 1-0

[Event "ETCC Women 2013"]
[Site "Warsaw"]
[Date "2013.11.10"]
[Round "3"]
[White "Dierckens, Sarah"]
[Black "Batkovskyte, Dominyka"]
[Result "0-1"]
[ECO "B07"]
[WhiteElo "1872"]
[BlackElo "2111"]
[PlyCount "66"]
[EventDate "2013.??.??"]
[EventCountry "POL"]
[WhiteTeam "Belgium"]
[BlackTeam "Lithuania"]
[WhiteTeamCountry "BEL"]
[BlackTeamCountry "LTU"]
[TimeControl "40/5400+30:1800+30"]

1. e4 {[%emt 0:00:00]} d6 {[%emt 0:00:00]} 2. d4 {[%emt 0:00:00]} Nf6 {[%emt 0:
00:00]} 3. Nc3 {[%emt 0:00:19]} c6 {[%emt 0:00:03]} 4. f4 {[%emt 0:02:27]} Qa5
{[%emt 0:03:01]} 5. Bd3 {[%emt 0:06:12]} e5 {[%emt 0:00:37]} 6. dxe5 {[%emt 0:
03:49]} dxe5 {[%emt 0:00:07]} 7. f5 {[%emt 0:01:06]} Bc5 {[%emt 0:09:46]} 8.
Bd2 {[%emt 0:04:20]} Qd8 {[%emt 0:04:02]} 9. Qe2 {[%emt 0:04:48]} Nbd7 {[%emt
0:03:42]} 10. g4 {[%emt 0:02:01]} h5 {[%emt 0:04:44]} 11. g5 {[%emt 0:05:30]}
Ng4 {[%emt 0:09:15]} 12. Nh3 {[%emt 0:02:07]} b5 {[%emt 0:08:53]} 13. O-O-O {
[%emt 0:06:43]} Qb6 {[%emt 0:02:54]} 14. Rhf1 {[%emt 0:15:14]} Ne3 {[%emt 0:07:
08]} 15. Bxe3 {[%emt 0:01:48]} Bxe3+ {[%emt 0:00:04]} 16. Kb1 {[%emt 0:00:06]}
Bb7 {[%emt 0:01:31]} 17. g6 {[%emt 0:06:15]} f6 {[%emt 0:06:48]} 18. Bxb5 {
[%emt 0:16:18]} Bd4 {[%emt 0:11:34]} 19. Qc4 {[%emt 0:03:52]} O-O-O {[%emt 0:
00:39]} 20. Rf3 {[%emt 0:05:08]} Nc5 {[%emt 0:04:01]} 21. Qe2 {[%emt 0:04:05]}
cxb5 {[%emt 0:02:12]} 22. b4 {[%emt 0:03:06]} Na4 {[%emt 0:04:57]} 23. Nxb5 {
[%emt 0:03:14]} a6 {[%emt 0:00:48]} 24. Qc4+ {[%emt 0:01:11]} Kb8 {[%emt 0:00:
17]} 25. Nxd4 {[%emt 0:00:33]} exd4 {[%emt 0:00:20]} 26. Kc1 {[%emt 0:01:40]}
Bxe4 {[%emt 0:01:04]} 27. Rf2 {[%emt 0:00:41]} Nc3 {[%emt 0:02:00]} 28. Re1 {
[%emt 0:00:33]} Bd5 {[%emt 0:00:26]} 29. Qd3 {[%emt 0:00:30]} Nxa2+ {[%emt 0:
00:33]} 30. Kd1 {[%emt 0:00:25]} Nc3+ {[%emt 0:00:14]} 31. Kd2 {[%emt 0:00:50]}
Qxb4 {[%emt 0:00:37]} 32. Qxa6 {[%emt 0:00:33]} Ne4+ {[%emt 0:00:48]} 33. Kc1 {
[%emt 0:00:23]} Qxe1+ {[%emt 0:00:09]} 0-1

[Event "ETCC Women 2013"]
[Site "Warsaw"]
[Date "2013.11.10"]
[Round "3"]
[White "Dolzhikova, Olga"]
[Black "Sedina, Elena"]
[Result "1-0"]
[ECO "C02"]
[WhiteElo "2198"]
[BlackElo "2302"]
[PlyCount "63"]
[EventDate "2013.??.??"]
[EventCountry "POL"]
[WhiteTeam "Norway"]
[BlackTeam "Italy"]
[WhiteTeamCountry "NOR"]
[BlackTeamCountry "ITA"]
[TimeControl "40/5400+30:1800+30"]

1. e4 {[%emt 0:00:00]} c5 {[%emt 0:00:00]} 2. c3 {[%emt 0:00:01]} e6 {[%emt 0:
00:00]} 3. d4 {[%emt 0:02:31]} d5 {[%emt 0:00:16]} 4. e5 {[%emt 0:02:29]} Nc6 {
[%emt 0:00:28]} 5. Nf3 {[%emt 0:00:08]} Bd7 {[%emt 0:00:57]} 6. a3 {[%emt 0:09:
09]} f6 {[%emt 0:02:03]} 7. Bd3 {[%emt 0:04:25]} Qc7 {[%emt 0:01:14]} 8. O-O {
[%emt 0:00:20]} c4 {[%emt 0:11:51]} 9. Bc2 {[%emt 0:02:27]} fxe5 {[%emt 0:00:
08]} 10. Nxe5 {[%emt 0:01:21]} Nxe5 {[%emt 0:07:34]} 11. dxe5 {[%emt 0:00:08]}
Ne7 {[%emt 0:09:13]} 12. Re1 {[%emt 0:04:52]} O-O-O {[%emt 0:06:15]} 13. Be3 {
[%emt 0:06:07]} Nc6 {[%emt 0:26:00]} 14. Bd4 {[%emt 0:02:41]} g6 {[%emt 0:00:
33]} 15. Nd2 {[%emt 0:03:56]} Nxd4 {[%emt 0:22:27]} 16. cxd4 {[%emt 0:00:15]}
Qb6 {[%emt 0:00:08]} 17. b3 {[%emt 0:05:21]} Qxd4 {[%emt 0:00:58]} 18. bxc4 {
[%emt 0:10:24]} Bh6 {[%emt 0:04:23]} 19. Ne4 {[%emt 0:01:06]} Qxe5 {[%emt 0:02:
42]} 20. Nc5 {[%emt 0:07:01]} Qd6 {[%emt 0:01:12]} 21. Nxd7 {[%emt 0:01:10]}
Rxd7 {[%emt 0:00:12]} 22. Qg4 {[%emt 0:10:47]} d4 {[%emt 0:01:19]} 23. Rxe6 {
[%emt 0:00:58]} Qf4 {[%emt 0:00:05]} 24. Qh3 {[%emt 0:03:04]} Rf8 {[%emt 0:01:
24]} 25. Rf1 {[%emt 0:09:37]} Kc7 {[%emt 0:00:07]} 26. Be4 {[%emt 0:02:50]}
Rdf7 {[%emt 0:00:45]} 27. Qb3 {[%emt 0:01:14]} Kb8 {[%emt 0:00:27]} 28. Bf3 {
[%emt 0:03:28]} Qc7 29. Rfe1 {[%emt 0:00:15]} Rc8 {[%emt 0:01:08]} 30. Re8 {
[%emt 0:01:28]} Bf4 {[%emt 0:00:30]} 31. c5 {[%emt 0:02:25]} Bxh2+ {[%emt 0:01:
11]} 32. Kh1 {[%emt 0:00:30]} 1-0

[Event "ETCC Women 2013"]
[Site "Warsaw"]
[Date "2013.11.10"]
[Round "3"]
[White "Dworakowska, Joanna"]
[Black "Mkrtchian, Lilit"]
[Result "0-1"]
[ECO "B17"]
[WhiteElo "2326"]
[BlackElo "2447"]
[PlyCount "114"]
[EventDate "2013.??.??"]
[EventCountry "POL"]
[WhiteTeam "Poland"]
[BlackTeam "Armenia"]
[WhiteTeamCountry "POL"]
[BlackTeamCountry "ARM"]
[TimeControl "40/5400+30:1800+30"]

1. e4 {[%emt 0:00:00]} c6 {[%emt 0:00:00]} 2. d4 {[%emt 0:00:00]} d5 {[%emt 0:
00:00]} 3. Nc3 {[%emt 0:00:00]} dxe4 {[%emt 0:00:01]} 4. Nxe4 {[%emt 0:00:00]}
Nd7 {[%emt 0:00:11]} 5. Nf3 {[%emt 0:04:56]} Ngf6 {[%emt 0:00:24]} 6. Nc3 {
[%emt 0:00:36]} e6 {[%emt 0:02:09]} 7. g3 {[%emt 0:14:08]} b6 {[%emt 0:02:23]}
8. Bg2 {[%emt 0:01:07]} Ba6 {[%emt 0:01:58]} 9. Ne2 {[%emt 0:03:07]} Be7 {
[%emt 0:00:51]} 10. O-O {[%emt 0:00:51]} O-O {[%emt 0:00:31]} 11. Re1 {[%emt 0:
00:12]} Rc8 {[%emt 0:04:24]} 12. Nf4 {[%emt 0:04:00]} Nd5 {[%emt 0:04:06]} 13.
c3 {[%emt 0:04:20]} Bd6 {[%emt 0:17:19]} 14. Ne5 {[%emt 0:06:09]} Bxe5 {[%emt
0:16:34]} 15. dxe5 {[%emt 0:04:37]} Qc7 {[%emt 0:00:24]} 16. Nxd5 {[%emt 0:16:
15]} cxd5 {[%emt 0:02:55]} 17. Bf4 {[%emt 0:01:39]} Nc5 {[%emt 0:02:19]} 18.
Re3 {[%emt 0:00:45]} Kh8 {[%emt 0:10:14]} 19. h4 {[%emt 0:01:38]} Rfd8 {[%emt
0:01:12]} 20. h5 {[%emt 0:02:05]} h6 {[%emt 0:00:06]} 21. g4 {[%emt 0:06:33]}
Qe7 {[%emt 0:02:11]} 22. Rh3 {[%emt 0:08:58]} Ne4 {[%emt 0:01:58]} 23. Be3 {
[%emt 0:01:10]} Ng5 {[%emt 0:01:16]} 24. Rg3 {[%emt 0:00:53]} Ne4 {[%emt 0:00:
10]} 25. Rh3 {[%emt 0:01:04]} Ng5 {[%emt 0:00:13]} 26. Rh2 {[%emt 0:03:28]} Qc7
{[%emt 0:10:13]} 27. f4 {[%emt 0:02:05]} Ne4 {[%emt 0:00:05]} 28. Bf3 {[%emt 0:
00:30]} Nc5 {[%emt 0:04:40]} 29. Rd2 {[%emt 0:01:05]} Qe7 {[%emt 0:01:22]} 30.
Rg2 {[%emt 0:02:17]} f6 {[%emt 0:04:39]} 31. exf6 {[%emt 0:02:56]} Qxf6 {[%emt
0:00:23]} 32. g5 {[%emt 0:01:11]} hxg5 {[%emt 0:00:11]} 33. fxg5 {[%emt 0:02:
42]} Qe5 {[%emt 0:04:40]} 34. Bd4 {[%emt 0:00:36]} Qf4 {[%emt 0:00:08]} 35. Be2
{[%emt 0:02:22]} Bb7 {[%emt 0:04:56]} 36. Qf1 {[%emt 0:02:51]} Qc7 {[%emt 0:00:
20]} 37. h6 {[%emt 0:00:45]} e5 {[%emt 0:00:09]} 38. Rh2 {[%emt 0:00:19]} Rf8 {
[%emt 0:00:56]} 39. Qh3 {[%emt 0:00:26]} g6 {[%emt 0:00:38]} 40. Bf2 {[%emt 0:
00:00]} Kh7 {[%emt 0:00:00]} 41. Rf1 {[%emt 0:01:55]} Qe7 {[%emt 0:09:03]} 42.
Qe3 {[%emt 0:01:55]} Ne4 {[%emt 0:02:16]} 43. Bh4 {[%emt 0:01:35]} Rxf1+ {
[%emt 0:02:11]} 44. Bxf1 {[%emt 0:00:07]} Rf8 {[%emt 0:01:14]} 45. Bd3 {[%emt
0:08:18]} Rf4 {[%emt 0:00:50]} 46. Bxe4 {[%emt 0:00:04]} Rxe4 {[%emt 0:00:03]}
47. Qf2 {[%emt 0:00:09]} Rf4 {[%emt 0:00:14]} 48. Qe1 {[%emt 0:02:49]} Ba6 {
[%emt 0:04:35]} 49. Bf2 {[%emt 0:01:33]} Qxg5+ {[%emt 0:00:15]} 50. Rg2 {[%emt
0:00:04]} Qf5 {[%emt 0:01:11]} 51. Qd2 {[%emt 0:00:56]} Bb7 {[%emt 0:01:58]}
52. Rg3 {[%emt 0:03:51]} d4 {[%emt 0:01:52]} 53. cxd4 {[%emt 0:00:05]} Rh4 {
[%emt 0:04:01]} 54. d5 {[%emt 0:02:03]} Bxd5 {[%emt 0:01:40]} 55. Kf1 {[%emt 0:
01:26]} Rh1+ {[%emt 0:00:10]} 56. Rg1 {[%emt 0:00:42]} Bc4+ {[%emt 0:00:10]}
57. Kg2 {[%emt 0:00:05]} Qh3# {[%emt 0:00:11]} 0-1